[Event "*** Titled Tuesday Blitz"]
[Site "Chess.com"]
[Date "2018.07.03"]
[Round "6"]
[White "rekosheten"]
[Black "Roachelley"]
[Result "0-1"]
[WhiteElo "2336"]
[BlackElo "2310"]
[TimeControl "180+2"]
[EndTime "14:16:21 PDT"]
[Termination "Roachelley won on time"]

1. e4 {[%clk 0:03:01.9]} 1... c5 {[%clk 0:03:00.4]} 2. Nf3 {[%clk 0:02:42.3]}
2... d6 {[%clk 0:03:00.6]} 3. d4 {[%clk 0:02:42.8]} 3... cxd4 {[%clk 0:03:02.5]}
4. Nxd4 {[%clk 0:02:44.6]} 4... Nf6 {[%clk 0:03:02.9]} 5. Nc3 {[%clk 0:02:46]}
5... Nc6 {[%clk 0:03:03.6]} 6. Bc4 {[%clk 0:02:44.3]} 6... Bd7 {[%clk
0:03:02.9]} 7. O-O {[%clk 0:02:20.2]} 7... g6 {[%clk 0:03:02.4]} 8. Kh1 {[%clk
0:02:03.7]} 8... Bg7 {[%clk 0:03:02.4]} 9. Nde2 {[%clk 0:02:01]} 9... O-O {[%clk
0:03:02.5]} 10. Bg5 {[%clk 0:01:51.1]} 10... Rc8 {[%clk 0:03:00.5]} 11. Qc1
{[%clk 0:01:40.6]} 11... Ne5 {[%clk 0:02:59.6]} 12. Bb3 {[%clk 0:01:41.1]} 12...
b5 {[%clk 0:02:58.3]} 13. Nf4 {[%clk 0:01:10.9]} 13... h6 {[%clk 0:02:44.8]} 14.
Bxf6 {[%clk 0:01:10.2]} 14... Bxf6 {[%clk 0:02:46.7]} 15. Nxg6 {[%clk
0:00:47.3]} 15... Nxg6 {[%clk 0:02:36.2]} 16. Qxh6 {[%clk 0:00:48.2]} 16... e6
{[%clk 0:02:34.3]} 17. Rad1 {[%clk 0:00:41.5]} 17... Bg7 {[%clk 0:02:30.3]} 18.
Qd2 {[%clk 0:00:32.3]} 18... Bc6 {[%clk 0:02:24.2]} 19. a3 {[%clk 0:00:21.4]}
19... Qb6 {[%clk 0:02:19.3]} 20. f4 {[%clk 0:00:20.2]} 20... Bxc3 {[%clk
0:02:04.6]} 21. Qxc3 {[%clk 0:00:07.9]} 21... Bxe4 {[%clk 0:01:59.1]} 22. Qf6
{[%clk 0:00:06]} 22... Bf5 {[%clk 0:01:48]} 23. Rd3 {[%clk 0:00:03.5]} 23...
Bxd3 {[%clk 0:01:28.9]} 24. cxd3 {[%clk 0:00:05.4]} 24... Qd8 {[%clk 0:01:21]}
25. Qd4 {[%clk 0:00:06.4]} 25... Qh4 {[%clk 0:00:46.3]} 26. g3 {[%clk
0:00:05.8]} 26... Qh3 {[%clk 0:00:44.6]} 27. Re1 {[%clk 0:00:06.1]} 27... Rc5
{[%clk 0:00:37.6]} 28. Qf6 {[%clk 0:00:04.2]} 28... Rf5 {[%clk 0:00:32.3]} 29.
Qc3 {[%clk 0:00:03.1]} 29... Kh7 {[%clk 0:00:26.7]} 30. Qc7 {[%clk 0:00:02.2]}
30... Nxf4 {[%clk 0:00:20.9]} 0-1

[Event "*** Titled Tuesday Blitz"]
[Site "Chess.com"]
[Date "2018.07.03"]
[Round "6"]
[White "Parhamov"]
[Black "moro182"]
[Result "1-0"]
[WhiteElo "2773"]
[BlackElo "2636"]
[TimeControl "180+2"]
[EndTime "14:16:32 PDT"]
[Termination "Parhamov won by checkmate"]

1. Nc3 {[%clk 0:03:00.7]} 1... Nf6 {[%clk 0:02:58.1]} 2. d4 {[%clk 0:02:59.6]}
2... d5 {[%clk 0:02:59]} 3. Bf4 {[%clk 0:02:59.1]} 3... a6 {[%clk 0:02:55.9]} 4.
f3 {[%clk 0:02:57.9]} 4... e6 {[%clk 0:02:55.8]} 5. g4 {[%clk 0:02:56.3]} 5...
c5 {[%clk 0:02:54.2]} 6. e3 {[%clk 0:02:57]} 6... Nc6 {[%clk 0:02:54.6]} 7. Qd2
{[%clk 0:02:52.3]} 7... Bd6 {[%clk 0:02:54.2]} 8. Nge2 {[%clk 0:02:52.1]} 8...
Bxf4 {[%clk 0:02:53]} 9. Nxf4 {[%clk 0:02:53]} 9... Qd6 {[%clk 0:02:51.7]} 10.
g5 {[%clk 0:02:51.5]} 10... Nd7 {[%clk 0:02:49.8]} 11. h4 {[%clk 0:02:46]} 11...
b5 {[%clk 0:02:49.9]} 12. h5 {[%clk 0:02:41.9]} 12... Bb7 {[%clk 0:02:44.4]} 13.
O-O-O {[%clk 0:02:42.2]} 13... O-O-O {[%clk 0:02:38.9]} 14. Bh3 {[%clk
0:02:39.4]} 14... g6 {[%clk 0:02:36.2]} 15. Nce2 {[%clk 0:02:30.6]} 15... Kb8
{[%clk 0:02:33]} 16. hxg6 {[%clk 0:02:25.6]} 16... hxg6 {[%clk 0:02:32.9]} 17.
Bg4 {[%clk 0:02:25.1]} 17... Nb6 {[%clk 0:02:25.2]} 18. dxc5 {[%clk 0:02:17.6]}
18... Qxc5 {[%clk 0:02:25.5]} 19. b3 {[%clk 0:02:11.4]} 19... Rxh1 {[%clk
0:02:10]} 20. Rxh1 {[%clk 0:02:11.9]} 20... d4 {[%clk 0:01:46.1]} 21. exd4
{[%clk 0:02:02.6]} 21... Nxd4 {[%clk 0:01:45.4]} 22. Nxd4 {[%clk 0:02:03.7]}
22... Rxd4 {[%clk 0:01:46.4]} 23. Nd3 {[%clk 0:02:01.9]} 23... Qa3+ {[%clk
0:01:41.1]} 24. Kb1 {[%clk 0:02:02.3]} 24... Nd5 {[%clk 0:01:36.9]} 25. c3
{[%clk 0:01:28]} 25... Rxd3 {[%clk 0:01:06.8]} 26. Qxd3 {[%clk 0:01:27.4]} 26...
Qc5 {[%clk 0:01:07.4]} 27. Kb2 {[%clk 0:01:21.9]} 27... b4 {[%clk 0:00:41.9]}
28. cxb4 {[%clk 0:01:22.6]} 28... Nxb4 {[%clk 0:00:43.7]} 29. Qc3 {[%clk
0:01:09.4]} 29... Qf2+ {[%clk 0:00:42.7]} 30. Ka3 {[%clk 0:01:10.3]} 30... a5
{[%clk 0:00:21.6]} 31. Qe5+ {[%clk 0:01:10.9]} 31... Kc8 {[%clk 0:00:15.2]} 32.
Bxe6+ {[%clk 0:00:50.8]} 32... fxe6 {[%clk 0:00:14.4]} 33. Rh8+ {[%clk
0:00:51.4]} 33... Kd7 {[%clk 0:00:14.3]} 34. Rh7+ {[%clk 0:00:52.5]} 34... Kc6
{[%clk 0:00:07.5]} 35. Qc7+ {[%clk 0:00:53.3]} 35... Kd5 {[%clk 0:00:04.8]} 36.
Qxa5+ {[%clk 0:00:48.3]} 36... Kc6 {[%clk 0:00:04.8]} 37. Qc7+ {[%clk
0:00:45.9]} 37... Kd5 {[%clk 0:00:05.2]} 38. Rd7# {[%clk 0:00:46.6]} 1-0

[Event "*** Titled Tuesday Blitz"]
[Site "Chess.com"]
[Date "2018.07.03"]
[Round "6"]
[White "Gr3egor"]
[Black "Triumphmate"]
[Result "1-0"]
[WhiteElo "2385"]
[BlackElo "2227"]
[TimeControl "180+2"]
[EndTime "14:16:50 PDT"]
[Termination "Gr3egor won by checkmate"]

1. d4 {[%clk 0:03:01.9]} 1... Nf6 {[%clk 0:02:59.7]} 2. c4 {[%clk 0:03:02.5]}
2... e6 {[%clk 0:03:00.7]} 3. Nc3 {[%clk 0:03:03.6]} 3... d5 {[%clk 0:03:01.2]}
4. cxd5 {[%clk 0:03:04.2]} 4... exd5 {[%clk 0:03:01.2]} 5. Bg5 {[%clk
0:03:05.3]} 5... Bb4 {[%clk 0:02:59.2]} 6. e3 {[%clk 0:03:03.7]} 6... h6 {[%clk
0:03:00.1]} 7. Bxf6 {[%clk 0:02:58.5]} 7... Qxf6 {[%clk 0:03:02]} 8. Nf3 {[%clk
0:02:58.5]} 8... c6 {[%clk 0:03:01.8]} 9. Bd3 {[%clk 0:02:51.9]} 9... Be6 {[%clk
0:02:59.9]} 10. O-O {[%clk 0:02:51.9]} 10... O-O {[%clk 0:03:01.3]} 11. Ne5
{[%clk 0:02:50.4]} 11... Nd7 {[%clk 0:03:00.6]} 12. f4 {[%clk 0:02:51.7]} 12...
Qe7 {[%clk 0:02:56.3]} 13. f5 {[%clk 0:02:43]} 13... Nxe5 {[%clk 0:02:55.1]} 14.
dxe5 {[%clk 0:02:44.9]} 14... Bxc3 {[%clk 0:02:52.3]} 15. bxc3 {[%clk
0:02:25.4]} 15... Bd7 {[%clk 0:02:50.9]} 16. f6 {[%clk 0:02:05.3]} 16... Qxe5
{[%clk 0:02:49.4]} 17. fxg7 {[%clk 0:02:06.7]} 17... Qxe3+ {[%clk 0:02:49.4]}
18. Kh1 {[%clk 0:02:06.5]} 18... Rfe8 {[%clk 0:02:44.9]} 19. Qh5 {[%clk
0:01:23.5]} 19... Re7 {[%clk 0:02:41.4]} 20. Qh4 {[%clk 0:00:50.8]} 20... Rae8
{[%clk 0:02:34.2]} 21. Rf3 {[%clk 0:00:48]} 21... Qg5 {[%clk 0:02:23.2]} 22. Qf2
{[%clk 0:00:48.8]} 22... c5 {[%clk 0:00:32.4]} 23. Rf1 {[%clk 0:00:23.4]} 23...
Be6 {[%clk 0:00:22.6]} 24. Qxc5 {[%clk 0:00:24.3]} 24... b6 {[%clk 0:00:17.6]}
25. Qd4 {[%clk 0:00:24.3]} 25... Bc8 {[%clk 0:00:07.4]} 26. Bb1 {[%clk
0:00:22.9]} 26... Re1 {[%clk 0:00:06.8]} 27. Qd3 {[%clk 0:00:17.3]} 27... f5
{[%clk 0:00:06.1]} 28. Qxd5+ {[%clk 0:00:17.2]} 28... Kxg7 {[%clk 0:00:07]} 29.
Qd4+ {[%clk 0:00:15.1]} 29... Kg6 {[%clk 0:00:07.7]} 30. h4 {[%clk 0:00:14.7]}
30... Qc1 {[%clk 0:00:06.4]} 31. Qd6+ {[%clk 0:00:13.1]} 31... R8e6 {[%clk
0:00:07.4]} 32. Qg3+ {[%clk 0:00:14.2]} 32... Kf6 {[%clk 0:00:08]} 33. Rxf5+
{[%clk 0:00:15.3]} 33... Ke7 {[%clk 0:00:09.3]} 34. Rf7+ {[%clk 0:00:16.4]}
34... Ke8 {[%clk 0:00:09.5]} 35. Qg8# {[%clk 0:00:17.1]} 1-0

[Event "*** Titled Tuesday Blitz"]
[Site "Chess.com"]
[Date "2018.07.03"]
[Round "6"]
[White "Micki-taryan"]
[Black "penguingm1"]
[Result "0-1"]
[WhiteElo "2849"]
[BlackElo "2783"]
[TimeControl "180+2"]
[EndTime "14:16:54 PDT"]
[Termination "penguingm1 won by checkmate"]

1. e4 {[%clk 0:03:01.9]} 1... e5 {[%clk 0:02:59.8]} 2. Nf3 {[%clk 0:03:01.1]}
2... Nc6 {[%clk 0:03:00.7]} 3. Bb5 {[%clk 0:03:02.7]} 3... a6 {[%clk 0:03:00.4]}
4. Ba4 {[%clk 0:03:03.5]} 4... Nf6 {[%clk 0:03:01.5]} 5. O-O {[%clk 0:03:05]}
5... Be7 {[%clk 0:03:02.7]} 6. d3 {[%clk 0:03:05.7]} 6... b5 {[%clk 0:03:02.4]}
7. Bb3 {[%clk 0:03:07.3]} 7... d6 {[%clk 0:03:04.3]} 8. Bd2 {[%clk 0:03:07.6]}
8... O-O {[%clk 0:02:58.2]} 9. a4 {[%clk 0:03:08.6]} 9... b4 {[%clk 0:02:47.5]}
10. a5 {[%clk 0:03:08.5]} 10... Rb8 {[%clk 0:02:44.1]} 11. Bg5 {[%clk 0:02:53]}
11... Rb5 {[%clk 0:02:11.2]} 12. Ba4 {[%clk 0:02:45.8]} 12... Rxa5 {[%clk
0:01:44.4]} 13. Nbd2 {[%clk 0:02:45.5]} 13... Nd4 {[%clk 0:01:45.3]} 14. Nc4
{[%clk 0:02:41.2]} 14... Rc5 {[%clk 0:01:21.9]} 15. Nfd2 {[%clk 0:02:36.7]}
15... d5 {[%clk 0:01:04.1]} 16. Bxf6 {[%clk 0:02:25.6]} 16... Bxf6 {[%clk
0:00:54]} 17. Ne3 {[%clk 0:02:24.7]} 17... Be6 {[%clk 0:00:48.4]} 18. Bb3 {[%clk
0:02:03.7]} 18... Nxb3 {[%clk 0:00:44]} 19. Nxb3 {[%clk 0:02:05.6]} 19... Rc6
{[%clk 0:00:45.4]} 20. exd5 {[%clk 0:01:50.2]} 20... Bxd5 {[%clk 0:00:45.8]} 21.
Nxd5 {[%clk 0:01:52.1]} 21... Qxd5 {[%clk 0:00:46.2]} 22. Ra5 {[%clk 0:01:54]}
22... Qd6 {[%clk 0:00:38.1]} 23. Nd2 {[%clk 0:01:55]} 23... Rd8 {[%clk
0:00:31.1]} 24. Qb1 {[%clk 0:01:54.7]} 24... Qe6 {[%clk 0:00:29.7]} 25. b3
{[%clk 0:01:51.6]} 25... Rd5 {[%clk 0:00:29.1]} 26. Ra4 {[%clk 0:01:50.4]} 26...
Be7 {[%clk 0:00:28.8]} 27. Qa2 {[%clk 0:01:49.8]} 27... Bc5 {[%clk 0:00:24.8]}
28. Ne4 {[%clk 0:01:51]} 28... Be7 {[%clk 0:00:16.4]} 29. Re1 {[%clk 0:01:50.7]}
29... h6 {[%clk 0:00:16.8]} 30. Nd2 {[%clk 0:01:51.6]} 30... Bc5 {[%clk
0:00:17.2]} 31. Ne4 {[%clk 0:01:52.3]} 31... Bd4 {[%clk 0:00:16.7]} 32. Rxb4
{[%clk 0:01:53.4]} 32... f5 {[%clk 0:00:17.8]} 33. Rb8+ {[%clk 0:01:54.5]} 33...
Kh7 {[%clk 0:00:18.9]} 34. Ng3 {[%clk 0:01:56]} 34... Bc3 {[%clk 0:00:19.5]} 35.
Rf1 {[%clk 0:01:56.5]} 35... Ra5 {[%clk 0:00:20.7]} 36. Qb1 {[%clk 0:01:31.6]}
36... Ra1 {[%clk 0:00:21.8]} 37. Qxa1 {[%clk 0:01:29.8]} 37... Bxa1 {[%clk
0:00:23.7]} 38. Rxa1 {[%clk 0:01:31.3]} 38... Rxc2 {[%clk 0:00:25.3]} 39. h4
{[%clk 0:01:32.5]} 39... Qg6 {[%clk 0:00:22.5]} 40. h5 {[%clk 0:01:32.7]} 40...
Qg4 {[%clk 0:00:23.4]} 41. Nf1 {[%clk 0:01:21]} 41... f4 {[%clk 0:00:24]} 42.
Rxa6 {[%clk 0:01:13.3]} 42... Qe2 {[%clk 0:00:21.8]} 43. Kh2 {[%clk 0:00:48.4]}
43... Qxh5+ {[%clk 0:00:20.5]} 44. Kg1 {[%clk 0:00:49.6]} 44... Qe2 {[%clk
0:00:22.1]} 45. Kh2 {[%clk 0:00:45.7]} 45... Qxf2 {[%clk 0:00:20.1]} 46. Rg6
{[%clk 0:00:47.2]} 46... Kxg6 {[%clk 0:00:19.6]} 47. Rb6+ {[%clk 0:00:48.8]}
47... cxb6 {[%clk 0:00:20.7]} 48. Ne3 {[%clk 0:00:50.4]} 48... Qxe3 {[%clk
0:00:20.4]} 49. b4 {[%clk 0:00:51.1]} 49... Qg3+ {[%clk 0:00:21.6]} 50. Kh1
{[%clk 0:00:53]} 50... Qxg2# {[%clk 0:00:23.5]} 0-1

[Event "*** Titled Tuesday Blitz"]
[Site "Chess.com"]
[Date "2018.07.03"]
[Round "6"]
[White "VerdeNotte"]
[Black "Mbneu"]
[Result "1-0"]
[WhiteElo "2605"]
[BlackElo "2248"]
[TimeControl "180+2"]
[EndTime "14:16:55 PDT"]
[Termination "VerdeNotte won on time"]

1. Nf3 {[%clk 0:03:01.9]} 1... d5 {[%clk 0:03:00.1]} 2. g3 {[%clk 0:03:01.6]}
2... e6 {[%clk 0:03:01.5]} 3. Bg2 {[%clk 0:03:02.7]} 3... c5 {[%clk 0:03:03]} 4.
b3 {[%clk 0:03:03.7]} 4... Nc6 {[%clk 0:03:03.6]} 5. Bb2 {[%clk 0:03:05.1]} 5...
Nf6 {[%clk 0:03:04.5]} 6. e3 {[%clk 0:03:05.2]} 6... Be7 {[%clk 0:03:05]} 7. O-O
{[%clk 0:03:06]} 7... O-O {[%clk 0:03:05.2]} 8. c4 {[%clk 0:03:07]} 8... d4
{[%clk 0:03:05]} 9. exd4 {[%clk 0:03:07.1]} 9... cxd4 {[%clk 0:03:06]} 10. Re1
{[%clk 0:03:07.8]} 10... Bc5 {[%clk 0:03:06.1]} 11. Ne5 {[%clk 0:03:08.4]} 11...
Nxe5 {[%clk 0:03:05.6]} 12. Rxe5 {[%clk 0:03:10.3]} 12... Bd6 {[%clk 0:03:06.7]}
13. Bxd4 {[%clk 0:03:11]} 13... Bxe5 {[%clk 0:03:07]} 14. Bxe5 {[%clk
0:03:12.9]} 14... Nd7 {[%clk 0:03:07]} 15. Bc3 {[%clk 0:03:12.1]} 15... Re8
{[%clk 0:03:01.5]} 16. d4 {[%clk 0:03:07.5]} 16... e5 {[%clk 0:03:02]} 17. dxe5
{[%clk 0:03:01.8]} 17... Nc5 {[%clk 0:03:02.5]} 18. Nd2 {[%clk 0:02:55.7]} 18...
Bf5 {[%clk 0:02:57]} 19. Nf3 {[%clk 0:02:49.3]} 19... Qc7 {[%clk 0:02:45.9]} 20.
Qd4 {[%clk 0:02:26.3]} 20... Rad8 {[%clk 0:02:43.9]} 21. Qf4 {[%clk 0:02:26.3]}
21... Bg6 {[%clk 0:02:38.6]} 22. h4 {[%clk 0:02:17.5]} 22... Rd3 {[%clk
0:02:20.5]} 23. Bb4 {[%clk 0:02:05.2]} 23... Ne6 {[%clk 0:02:20.4]} 24. Qc1
{[%clk 0:01:59.8]} 24... Red8 {[%clk 0:01:42.5]} 25. Bd6 {[%clk 0:02:00]} 25...
Qb6 {[%clk 0:01:42.8]} 26. c5 {[%clk 0:01:59.1]} 26... Qa5 {[%clk 0:01:41.1]}
27. b4 {[%clk 0:01:32.4]} 27... Qxb4 {[%clk 0:01:38.7]} 28. c6 {[%clk
0:01:32.9]} 28... Qb6 {[%clk 0:01:13.2]} 29. cxb7 {[%clk 0:01:28]} 29... Qxb7
{[%clk 0:01:05.8]} 30. Ne1 {[%clk 0:01:28.5]} 30... Be4 {[%clk 0:01:01.5]} 31.
Bxe4 {[%clk 0:01:10.4]} 31... Qxe4 {[%clk 0:01:02.6]} 32. Nxd3 {[%clk
0:01:11.6]} 32... Qxd3 {[%clk 0:01:04.2]} 33. Qe3 {[%clk 0:01:01.5]} 33... Qd5
{[%clk 0:00:55.6]} 34. f3 {[%clk 0:00:26.5]} 34... Nd4 {[%clk 0:00:49.2]} 35.
Rf1 {[%clk 0:00:27]} 35... Nf5 {[%clk 0:00:41.5]} 36. Qg5 {[%clk 0:00:27.7]}
36... Qd4+ {[%clk 0:00:18]} 37. Kh2 {[%clk 0:00:28.4]} 37... Qb2+ {[%clk
0:00:12.4]} 38. Kh3 {[%clk 0:00:29.4]} 38... Rxd6 {[%clk 0:00:03.8]} 39. exd6
{[%clk 0:00:30]} 39... g6 {[%clk 0:00:03.1]} 40. d7 {[%clk 0:00:29.5]} 1-0

[Event "*** Titled Tuesday Blitz"]
[Site "Chess.com"]
[Date "2018.07.03"]
[Round "6"]
[White "dachessmandan"]
[Black "EndgameGrinder"]
[Result "0-1"]
[WhiteElo "2422"]
[BlackElo "2462"]
[TimeControl "180+2"]
[EndTime "14:16:58 PDT"]
[Termination "EndgameGrinder won by checkmate"]

1. e4 {[%clk 0:03:01.9]} 1... c5 {[%clk 0:03:00.6]} 2. Nf3 {[%clk 0:03:02.5]}
2... e6 {[%clk 0:03:01.4]} 3. d4 {[%clk 0:03:04]} 3... cxd4 {[%clk 0:03:02.6]}
4. Nxd4 {[%clk 0:03:05.9]} 4... Nc6 {[%clk 0:03:03.8]} 5. Be3 {[%clk 0:03:04.1]}
5... Nf6 {[%clk 0:03:03.1]} 6. f3 {[%clk 0:03:04.5]} 6... d5 {[%clk 0:03:03.7]}
7. exd5 {[%clk 0:02:46.8]} 7... Nxd5 {[%clk 0:03:05.6]} 8. Bf2 {[%clk
0:02:47.3]} 8... Bc5 {[%clk 0:02:48.3]} 9. Bb5 {[%clk 0:02:17]} 9... O-O {[%clk
0:02:35.5]} 10. Bxc6 {[%clk 0:02:12.6]} 10... bxc6 {[%clk 0:02:34.6]} 11. O-O
{[%clk 0:02:13.8]} 11... Qb6 {[%clk 0:02:28.7]} 12. c3 {[%clk 0:01:36.8]} 12...
Ba6 {[%clk 0:02:21.5]} 13. Nb3 {[%clk 0:01:30.1]} 13... Bxf2+ {[%clk 0:01:22.2]}
14. Rxf2 {[%clk 0:01:32]} 14... e5 {[%clk 0:01:12.3]} 15. N1d2 {[%clk
0:01:26.8]} 15... Rad8 {[%clk 0:01:08.1]} 16. a4 {[%clk 0:01:06.4]} 16... Nf4
{[%clk 0:01:06.1]} 17. a5 {[%clk 0:01:05.4]} 17... Qe3 {[%clk 0:01:04.7]} 18.
Qe1 {[%clk 0:00:41.9]} 18... Qxe1+ {[%clk 0:01:03.5]} 19. Rxe1 {[%clk
0:00:43.8]} 19... Nd3 {[%clk 0:01:04.9]} 20. Re4 {[%clk 0:00:39.3]} 20... Nxf2
{[%clk 0:01:04.6]} 21. Kxf2 {[%clk 0:00:41.2]} 21... f6 {[%clk 0:00:52.7]} 22.
Rb4 {[%clk 0:00:41.1]} 22... Rb8 {[%clk 0:00:51.8]} 23. Ne4 {[%clk 0:00:42.2]}
23... Rxb4 {[%clk 0:00:52.2]} 24. cxb4 {[%clk 0:00:43.5]} 24... Bc4 {[%clk
0:00:52.8]} 25. Nbd2 {[%clk 0:00:41.9]} 25... Bd5 {[%clk 0:00:53.6]} 26. Nc3
{[%clk 0:00:42]} 26... Kf7 {[%clk 0:00:52.2]} 27. b5 {[%clk 0:00:43.4]} 27...
Ke6 {[%clk 0:00:53.2]} 28. bxc6 {[%clk 0:00:41]} 28... Bxc6 {[%clk 0:00:55.1]}
29. b4 {[%clk 0:00:42.5]} 29... Rb8 {[%clk 0:00:54.5]} 30. Nde4 {[%clk
0:00:39.7]} 30... Bxe4 {[%clk 0:00:52.2]} 31. Nxe4 {[%clk 0:00:40.4]} 31... Rxb4
{[%clk 0:00:52.7]} 32. Nc5+ {[%clk 0:00:42.3]} 32... Kd5 {[%clk 0:00:45.6]} 33.
Nd7 {[%clk 0:00:43.3]} 33... Rb2+ {[%clk 0:00:45.3]} 34. Kg3 {[%clk 0:00:43.7]}
34... Ra2 {[%clk 0:00:46.4]} 35. h4 {[%clk 0:00:41.4]} 35... Rxa5 {[%clk
0:00:46.6]} 36. h5 {[%clk 0:00:43.3]} 36... Ra1 {[%clk 0:00:43.3]} 37. Kg4
{[%clk 0:00:43.7]} 37... a5 {[%clk 0:00:44.3]} 38. Kf5 {[%clk 0:00:43]} 38... a4
{[%clk 0:00:45.5]} 39. Nb6+ {[%clk 0:00:44.3]} 39... Kc6 {[%clk 0:00:43]} 40.
Nc4 {[%clk 0:00:43.8]} 40... a3 {[%clk 0:00:42]} 41. h6 {[%clk 0:00:39.2]} 41...
gxh6 {[%clk 0:00:42.5]} 42. Kxf6 {[%clk 0:00:39.9]} 42... a2 {[%clk 0:00:41.9]}
43. Na5+ {[%clk 0:00:40.9]} 43... Kd5 {[%clk 0:00:41.7]} 44. Nb3 {[%clk
0:00:40.4]} 44... Rb1 {[%clk 0:00:41.5]} 45. Nd2 {[%clk 0:00:41.7]} 45... a1=Q
{[%clk 0:00:41.8]} 46. Ne4 {[%clk 0:00:42.5]} 46... Re1 {[%clk 0:00:39.1]} 47.
g4 {[%clk 0:00:41.5]} 47... Rxe4 {[%clk 0:00:39.2]} 48. g5 {[%clk 0:00:43]}
48... Rf4+ {[%clk 0:00:39.8]} 49. Kg7 {[%clk 0:00:43.6]} 49... hxg5 {[%clk
0:00:39.4]} 50. Kh6 {[%clk 0:00:44.6]} 50... Qa6+ {[%clk 0:00:39]} 51. Kh5
{[%clk 0:00:44.2]} 51... Rh4+ {[%clk 0:00:38.4]} 52. Kxg5 {[%clk 0:00:45.4]}
52... Qh6+ {[%clk 0:00:39.5]} 53. Kf5 {[%clk 0:00:47]} 53... Rf4# {[%clk
0:00:40.7]} 0-1

[Event "*** Titled Tuesday Blitz"]
[Site "Chess.com"]
[Date "2018.07.03"]
[Round "6"]
[White "Karina_Oparina"]
[Black "Goala"]
[Result "0-1"]
[WhiteElo "2197"]
[BlackElo "2423"]
[TimeControl "180+2"]
[EndTime "14:17:02 PDT"]
[Termination "Goala won by checkmate"]

1. Nf3 {[%clk 0:02:59.5]} 1... Nf6 {[%clk 0:03:00.5]} 2. g3 {[%clk 0:02:59.6]}
2... b6 {[%clk 0:03:02]} 3. Bg2 {[%clk 0:03:00.8]} 3... Bb7 {[%clk 0:03:03.5]}
4. O-O {[%clk 0:03:02]} 4... c5 {[%clk 0:03:05]} 5. c4 {[%clk 0:03:02]} 5... e6
{[%clk 0:03:06.3]} 6. d4 {[%clk 0:03:03]} 6... cxd4 {[%clk 0:03:08.2]} 7. Qxd4
{[%clk 0:03:03.4]} 7... a6 {[%clk 0:03:08.9]} 8. Nc3 {[%clk 0:03:03.6]} 8... Qc7
{[%clk 0:03:10.1]} 9. Bg5 {[%clk 0:02:58.6]} 9... Be7 {[%clk 0:03:10.4]} 10.
Rac1 {[%clk 0:02:56.2]} 10... d6 {[%clk 0:03:11]} 11. b3 {[%clk 0:02:51.8]}
11... Nbd7 {[%clk 0:03:11.6]} 12. Rfd1 {[%clk 0:02:51.3]} 12... O-O {[%clk
0:03:11.7]} 13. e4 {[%clk 0:02:47.2]} 13... Rac8 {[%clk 0:03:12.2]} 14. h4
{[%clk 0:02:41.4]} 14... Rfe8 {[%clk 0:03:12.4]} 15. Be3 {[%clk 0:02:24.8]}
15... Qb8 {[%clk 0:03:10.8]} 16. Nd2 {[%clk 0:02:10.7]} 16... Ba8 {[%clk
0:03:09.4]} 17. Qd3 {[%clk 0:02:08.6]} 17... Ne5 {[%clk 0:03:09]} 18. Qe2 {[%clk
0:02:08.4]} 18... Bf8 {[%clk 0:03:06.9]} 19. Nf3 {[%clk 0:02:05.9]} 19... Nxe4
{[%clk 0:02:43.2]} 20. Nxe4 {[%clk 0:01:52.5]} 20... Bxe4 {[%clk 0:02:43.1]} 21.
Nxe5 {[%clk 0:01:53]} 21... Bxg2 {[%clk 0:02:39.2]} 22. Nd7 {[%clk 0:01:37.7]}
22... Qb7 {[%clk 0:02:35.6]} 23. Nxb6 {[%clk 0:01:30.7]} 23... Bf3 {[%clk
0:02:19.6]} 24. Qd3 {[%clk 0:01:27.2]} 24... Rcd8 {[%clk 0:02:10]} 25. Rd2
{[%clk 0:01:19.6]} 25... Be7 {[%clk 0:02:04.3]} 26. Na4 {[%clk 0:01:06.9]} 26...
Bh1 {[%clk 0:01:53.9]} 27. Qf1 {[%clk 0:01:04.9]} 27... h6 {[%clk 0:01:27.8]}
28. Nc3 {[%clk 0:01:04.3]} 28... Bf3 {[%clk 0:01:24.6]} 29. Ne2 {[%clk
0:01:03.5]} 29... Qe4 {[%clk 0:01:19.3]} 30. Nd4 {[%clk 0:01:02.3]} 30... Bg4
{[%clk 0:01:17.1]} 31. Qg2 {[%clk 0:01:00.8]} 31... Qg6 {[%clk 0:01:16.5]} 32.
f3 {[%clk 0:00:39.4]} 32... Bf5 {[%clk 0:00:58.5]} 33. Nc6 {[%clk 0:00:32.9]}
33... Rc8 {[%clk 0:00:44.9]} 34. Nxe7+ {[%clk 0:00:31.9]} 34... Rxe7 {[%clk
0:00:46.8]} 35. g4 {[%clk 0:00:24.5]} 35... Bd3 {[%clk 0:00:39.1]} 36. Rc3
{[%clk 0:00:20.8]} 36... Bb1 {[%clk 0:00:39.2]} 37. h5 {[%clk 0:00:21.6]} 37...
Qh7 {[%clk 0:00:40.5]} 38. Rxd6 {[%clk 0:00:21.2]} 38... Ree8 {[%clk 0:00:30.6]}
39. Qd2 {[%clk 0:00:21.6]} 39... e5 {[%clk 0:00:28.4]} 40. Rc1 {[%clk
0:00:21.2]} 40... e4 {[%clk 0:00:20.4]} 41. Rxb1 {[%clk 0:00:21]} 41... exf3
{[%clk 0:00:21.8]} 42. Re1 {[%clk 0:00:21.5]} 42... Qe4 {[%clk 0:00:22.2]} 43.
Bf2 {[%clk 0:00:21.4]} 43... Qxg4+ {[%clk 0:00:23.2]} 44. Kh1 {[%clk 0:00:18.4]}
44... Qg2# {[%clk 0:00:23.6]} 0-1